bitfinex-derivatives/quotes_BTCF0:USTF0_20250508
["timestamp","ask_amount","ask_price","bid_price","bid_amount"]
[1746717304229,0.8349928,99789.0,99787.0,0.00767408]
[1746717305734,0.8349928,99789.0,99788.0,0.028]
[1746717306031,1.3349928,99789.0,99788.0,0.029]
[1746717311442,1.3349928,99789.0,99788.0,0.027]
[1746717313047,1.3349928,99789.0,99788.0,0.026]
[1746717313548,1.3349928,99789.0,99788.0,0.025]
[1746717313750,1.3349928,99789.0,99788.0,0.026]
[1746717315935,1.3349928,99789.0,99788.0,0.2788948]
[1746717316139,1.3349928,99789.0,99788.0,0.0785]
[1746717317147,1.3349928,99789.0,99788.0,0.0775]
[1746717317349,1.3349928,99789.0,99788.0,0.0795]
[1746717318449,1.3349928,99789.0,99788.0,0.0805]
[1746717319447,1.3349928,99789.0,99788.0,0.0795]
[1746717320047,1.3349928,99789.0,99788.0,0.1322]
[1746717320352,1.1669928,99789.0,99788.0,0.1332]
[1746717320550,1.0611928,99789.0,99788.0,0.483412]
[1746717320750,0.29049948,99789.0,99788.0,0.8447868]
[1746717320954,0.2003414,99815.0,99814.0,0.2479214]
[1746717321345,0.2003414,99815.0,99814.0,0.2003366]
[1746717322661,0.2003413,99816.0,99815.0,0.2504213]
[1746717322958,0.5611364,99818.0,99817.0,0.2003366]
[1746717323354,0.3608,99818.0,99817.0,0.2003366]
[1746717323657,0.3608,99818.0,99817.0,0.3021366]
[1746717323850,0.5611346,99818.0,99817.0,0.32826879]
[1746717324058,0.200331,99820.0,99819.0,0.2003325]
[1746717324253,0.001,99824.0,99823.0,0.2003245]
[1746717324753,0.001,99824.0,99823.0,0.5611245]
[1746717325151,0.001,99824.0,99823.0,0.6629245]
[1746717327453,0.5621225,99824.0,99823.0,0.3021245]
[1746717327753,0.001,99824.0,99823.0,0.3021245]
[1746717330151,0.001,99824.0,99823.0,0.3031245]
[1746717330354,0.001,99824.0,99823.0,0.3041245]
[1746717333568,0.00116781,99824.0,99823.0,0.3041245]
[1746717334262,0.00116781,99824.0,99823.0,0.4127645]
[1746717336460,0.20149031,99824.0,99823.0,0.4127645]
[1746717336666,0.20149031,99824.0,99823.0,0.21244]
[1746717338170,0.36949031,99824.0,99823.0,0.21244]
[1746717338562,0.16916781,99824.0,99823.0,0.4127645]
[1746717338869,0.36949031,99824.0,99823.0,0.4127645]
[1746717339967,0.36949031,99824.0,99823.0,0.21244]
[1746717341280,0.16916781,99824.0,99823.0,0.4127645]
[1746717341481,0.36949031,99824.0,99823.0,0.4127645]
[1746717341682,0.16916781,99824.0,99823.0,0.4127645]
[1746717341866,0.36949031,99824.0,99823.0,0.4127645]
[1746717342377,0.36949031,99824.0,99823.0,0.21244]
[1746717342777,0.36949031,99824.0,99823.0,0.4127645]
[1746717342974,0.36949031,99824.0,99823.0,0.16344]
[1746717343173,0.36949031,99824.0,99823.0,0.0548]
[1746717343878,0.47319031,99824.0,99823.0,0.002]
[1746717344974,0.0500821,99821.0,99794.0,0.2003824]
[1746717345174,0.0500924,99801.0,99800.0,0.10536]
[1746717345368,0.2003701,99801.0,99800.0,0.3057307]
[1746717345568,0.2003707,99800.0,99799.0,0.0529]
[1746717345768,0.2504707,99800.0,99799.0,0.0529]
[1746717346170,0.4184707,99800.0,99799.0,0.2532727]
[1746717346378,0.4184707,99800.0,99799.0,0.27944595]
[1746717346679,0.4184707,99800.0,99799.0,0.07907325]
[1746717346878,0.4184707,99800.0,99799.0,0.27944595]
[1746717347081,0.4184707,99800.0,99799.0,0.08307325]
[1746717347876,0.4184707,99800.0,99799.0,0.0609]
[1746717349178,0.4184707,99800.0,99799.0,0.0579]
[1746717350079,0.4184707,99800.0,99799.0,0.0569]
[1746717350380,0.4184707,99800.0,99799.0,0.0539]
[1746717352875,0.4184707,99800.0,99799.0,0.001]
[1746717353184,0.4184707,99800.0,99799.0,0.002]
[1746717353684,0.4184707,99800.0,99799.0,0.0546]
[1746717353983,0.4184707,99800.0,99799.0,0.0536]
[1746717354282,0.4184707,99800.0,99799.0,0.0546]
[1746717356782,0.4184707,99800.0,99799.0,0.002]
[1746717358486,0.9184707,99800.0,99799.0,0.002]
[1746717359486,0.2003888,99791.0,99790.0,0.0536]
[1746717359684,0.2003928,99789.0,99788.0,0.025]
[1746717360181,0.3683928,99789.0,99788.0,0.025]
[1746717360387,0.4700928,99789.0,99788.0,0.025]
[1746717361173,0.4700928,99789.0,99788.0,0.0759]
[1746717361578,0.4700928,99789.0,99788.0,0.026]
[1746717361996,0.5703048,99789.0,99788.0,0.027]
[1746717362983,1.0703048,99789.0,99788.0,0.026]
[1746717363182,1.0713048,99789.0,99788.0,0.025]
[1746717366485,0.870912,99789.0,99783.0,0.00056]
[1746717366686,0.0501045,99777.0,99769.0,0.0538]
[1746717366882,0.2004309,99770.0,99769.0,0.0797445]
[1746717367687,0.2004309,99770.0,99769.0,0.4405445]
[1746717367887,0.2004309,99770.0,99769.0,0.4435445]
[1746717368095,0.3684309,99770.0,99769.0,0.4435445]
[1746717369382,0.3684309,99770.0,99769.0,0.4445445]
[1746717369884,0.168,99770.0,99769.0,0.6449774]
[1746717370089,0.0025,99776.0,99775.0,0.2004209]
[1746717370983,0.0025,99776.0,99775.0,0.6561449]
[1746717371182,0.0025,99776.0,99775.0,0.8241449]
[1746717371385,0.1047,99799.0,99787.0,0.2003968]
[1746717371585,0.0501,99811.0,99787.0,0.5611968]
[1746717371586,0.050092,99802.0,99787.0,0.5611968]
[1746717371781,0.2003894,99791.0,99787.0,0.5611968]
[1746717372496,0.14027296,99800.0,99787.0,0.5611968]
[1746717372788,0.2003922,99790.0,99789.0,0.2003918]
[1746717373894,0.2003922,99790.0,99789.0,0.2023918]
[1746717374195,0.7003922,99790.0,99789.0,0.2023918]
[1746717375201,0.7003922,99790.0,99789.0,0.004]
[1746717375402,0.7003922,99790.0,99789.0,0.055]
[1746717375699,1.0611922,99790.0,99789.0,0.053]
[1746717375889,1.0611922,99790.0,99789.0,0.055]
[1746717376087,1.2291922,99790.0,99789.0,0.004]
[1746717376292,0.2003928,99789.0,99788.0,0.0493]
[1746717376600,0.2004249,99773.0,99772.0,0.1018]
[1746717377097,0.3684249,99773.0,99772.0,0.1018]
[1746717378104,0.3684249,99773.0,99772.0,0.1524]
[1746717379103,0.3684249,99773.0,99772.0,0.1544]
[1746717379602,0.3684249,99773.0,99772.0,0.1554]
[1746717379797,0.3684249,99773.0,99772.0,0.1026]
[1746717380001,0.3684249,99773.0,99772.0,0.0526]
[1746717380300,0.168,99773.0,99772.0,0.2530269]
[1746717380797,0.3684249,99773.0,99772.0,0.0526]
[1746717380998,0.8684249,99773.0,99772.0,0.2530269]
[1746717381197,0.7004249,99773.0,99772.0,0.2520269]
[1746717381399,0.7004249,99773.0,99772.0,0.2530269]
[1746717381594,0.5,99773.0,99772.0,0.2530269]
[1746717381794,0.5,99773.0,99772.0,0.6138269]
[1746717381997,0.5,99773.0,99772.0,0.6118269]
[1746717382302,0.5,99773.0,99772.0,0.7818269]
[1746717382505,0.5612088,99781.0,99780.0,0.2004108]
[1746717382805,0.3608,99781.0,99780.0,0.2004108]
[1746717383196,0.0507,99794.0,99788.0,0.2003948]
[1746717383498,0.2003865,99793.0,99788.0,0.2003948]
[1746717383703,0.8912928,99789.0,99788.0,0.2003948]
[1746717384105,0.6909,99789.0,99788.0,0.3030948]
[1746717384495,1.1909,99789.0,99788.0,0.3030948]
[1746717384795,0.7003928,99789.0,99788.0,0.3030948]
[1746717385197,0.5,99789.0,99788.0,0.3060948]
[1746717385500,0.5,99789.0,99788.0,0.6668948]
[1746717385907,0.2003798,99796.0,99795.0,0.2003797]
[1746717386507,0.2003866,99794.0,99793.0,0.2003843]
[1746717387806,0.2003866,99794.0,99793.0,0.2023843]
[1746717388606,0.2003866,99794.0,99793.0,0.002]
[1746717388809,0.3030866,99794.0,99793.0,0.002]
[1746717389010,0.3030866,99794.0,99793.0,0.004]
[1746717389211,0.5219866,99794.0,99793.0,0.004]
[1746717390908,0.5219866,99794.0,99793.0,0.002]
[1746717391108,0.5219866,99794.0,99793.0,0.004]
[1746717392212,0.5219866,99794.0,99793.0,0.002]
[1746717392413,0.5219866,99794.0,99793.0,0.001]
[1746717392613,0.5219866,99794.0,99793.0,0.003]
[1746717393017,0.5219866,99794.0,99793.0,0.001]
[1746717393222,0.5219866,99794.0,99793.0,0.002]
[1746717396125,0.4710866,99794.0,99793.0,0.2023847]
[1746717398428,0.168,99794.0,99793.0,0.2023847]
[1746717399325,0.200377,99797.0,99796.0,0.2003787]
[1746717399527,0.2003734,99799.0,99798.0,0.2003727]
[1746717400129,0.2003773,99797.0,99796.0,0.2003778]
[1746717400516,0.0498,99798.0,99797.0,0.2003767]
[1746717401332,0.0498,99798.0,99797.0,0.2519767]
[1746717401932,0.2501747,99798.0,99797.0,0.2529767]
[1746717402330,0.7501747,99798.0,99797.0,0.2529767]
[1746717402531,0.7501747,99798.0,99797.0,0.2519767]
[1746717402729,0.5498,99798.0,99797.0,0.2529767]
[1746717402934,0.5498,99798.0,99797.0,0.2549767]
[1746717403431,0.7501747,99798.0,99797.0,0.2549767]
[1746717405028,0.7501747,99798.0,99797.0,0.1047]
[1746717405929,0.7501747,99798.0,99797.0,0.3050767]
[1746717408237,0.7178,99798.0,99797.0,0.3050767]
[1746717408441,0.8683747,99798.0,99797.0,0.3050767]
[1746717409129,0.7003747,99798.0,99797.0,0.3050767]
[1746717410133,0.8683747,99798.0,99797.0,0.3050767]
[1746717410521,0.8683747,99798.0,99797.0,0.3060767]
[1746717411129,0.7495747,99798.0,99797.0,0.3060767]
[1746717411330,0.7495747,99798.0,99797.0,0.3070767]
[1746717412029,0.7495747,99798.0,99797.0,0.3040767]
[1746717412234,0.7495747,99798.0,99797.0,0.1057]
[1746717413223,0.9700747,99798.0,99797.0,0.1057]
[1746717414034,0.9700747,99798.0,99797.0,0.1555]
[1746717414837,0.9700747,99798.0,99797.0,0.3558767]
[1746717415239,0.9175747,99798.0,99797.0,0.3558767]
[1746717416438,0.9175747,99798.0,99797.0,0.1555]
[1746717416937,0.668,99798.0,99797.0,0.7166767]
[1746717417239,0.5,99798.0,99797.0,0.8168807]
[1746717417430,0.5,99798.0,99797.0,0.616504]
[1746717417734,0.0500909,99804.0,99797.0,0.6665979]
[1746717417926,0.2003747,99798.0,99797.0,0.1555]
[1746717418129,0.3683747,99798.0,99797.0,0.1555]
[1746717418336,0.3683747,99798.0,99797.0,0.3558767]
[1746717418539,0.3683747,99798.0,99797.0,0.0556]
[1746717418732,0.4677747,99798.0,99797.0,0.0556]
[1746717419230,0.4677747,99798.0,99797.0,0.2559767]
[1746717419430,0.4677747,99798.0,99797.0,0.0536]
[1746717419635,0.4677747,99798.0,99797.0,0.0556]
[1746717420038,0.4677747,99798.0,99797.0,0.0536]
[1746717420240,0.4677747,99798.0,99797.0,0.0556]
[1746717421834,0.4677747,99798.0,99797.0,0.0546]
[1746717422439,0.4677747,99798.0,99797.0,0.0536]
[1746717422936,0.4677747,99798.0,99797.0,0.0526]
[1746717423238,0.4677747,99798.0,99797.0,0.0536]
[1746717424536,0.4677747,99798.0,99797.0,0.0526]
[1746717424741,0.4677747,99798.0,99797.0,0.0546]
[1746717425238,0.4677747,99798.0,99797.0,0.2549767]
[1746717425536,0.168,99798.0,99797.0,0.2549767]
[1746717426138,0.168,99798.0,99797.0,0.2539767]
[1746717426333,0.0499,99803.0,99802.0,0.2003667]
[1746717426734,0.2502647,99803.0,99802.0,0.2003667]
[1746717427037,0.3628,99813.0,99811.0,0.2003486]
[1746717427240,0.3628,99813.0,99809.0,0.0500877]
[1746717427241,0.3628,99813.0,99812.0,0.2003466]
[1746717427436,0.5631446,99813.0,99812.0,0.2003466]
[1746717427834,0.3628,99813.0,99812.0,0.2003466]
[1746717428138,0.5631446,99813.0,99812.0,0.2003466]
[1746717428338,0.6681446,99813.0,99812.0,0.2003466]
[1746717428539,0.9152,99813.0,99812.0,0.2003466]
[1746717428939,0.9152,99813.0,99812.0,0.21578364]
[1746717429536,1.1155446,99813.0,99812.0,0.24124065]
[1746717429840,0.8628,99813.0,99812.0,0.24124065]
[1746717430540,0.8628,99813.0,99812.0,0.24121168]
[1746717430736,1.0631446,99813.0,99812.0,0.24121168]
[1746717430940,1.0631446,99813.0,99812.0,0.24860382]
[1746717431141,0.5631446,99813.0,99812.0,0.24860382]
[1746717431538,0.3628,99813.0,99812.0,0.24860382]
[1746717432351,0.3628,99813.0,99812.0,0.24885447]
[1746717433545,0.002,99813.0,99812.0,0.35325447]
[1746717434240,0.002,99813.0,99812.0,0.52125447]
[1746717434845,0.002,99813.0,99812.0,0.5212535]
[1746717435253,0.002,99813.0,99812.0,0.3532535]
[1746717437642,0.0025,99817.0,99816.0,0.2003386]
[1746717437846,0.00150447,99823.0,99822.0,0.2003265]
[1746717438141,0.00150447,99823.0,99822.0,0.21590466]
[1746717438338,0.00150447,99823.0,99822.0,0.31470466]
[1746717440456,0.0506,99830.0,99823.0,0.2003245]
[1746717440657,0.0506,99830.0,99823.0,0.21590266]
[1746717440859,0.0506,99830.0,99823.0,0.31470266]
[1746717441157,0.2003195,99826.0,99823.0,0.31470266]
[1746717441556,0.2003154,99828.0,99823.0,0.31478119]
[1746717441758,0.2003165,99827.0,99823.0,0.31478119]
[1746717442351,0.0525,99826.0,99823.0,0.31478119]
[1746717442851,0.0525,99826.0,99823.0,0.41918119]
[1746717442852,0.2528198,99826.0,99823.0,0.41918119]
[1746717443052,0.3040198,99826.0,99823.0,0.41918119]
[1746717443560,0.3040198,99826.0,99823.0,0.41907565]
[1746717443749,0.1037,99826.0,99823.0,0.41907565]
[1746717443949,0.3040185,99826.0,99823.0,0.41907565]
[1746717444257,0.3040185,99826.0,99823.0,0.4035245]
[1746717444460,0.3040185,99826.0,99823.0,0.41901754]
[1746717444852,0.1037,99826.0,99823.0,0.37011754]
[1746717445158,0.3040197,99826.0,99823.0,0.37011754]
[1746717445358,0.2003221,99825.0,99823.0,0.37011754]
[1746717445857,0.0986,99824.0,99823.0,0.37011754]
[1746717446057,0.0986,99824.0,99823.0,0.3546245]
[1746717446250,0.2989225,99824.0,99823.0,0.3546245]
[1746717447051,0.0986,99824.0,99823.0,0.3546245]
[1746717447650,0.0497,99824.0,99823.0,0.3546245]
[1746717447852,0.2500225,99824.0,99823.0,0.1543]
[1746717448057,0.2500225,99824.0,99823.0,0.16995667]
[1746717449559,0.2500225,99824.0,99823.0,0.37028117]
[1746717450755,0.0497,99824.0,99823.0,0.37028117]
[1746717450955,0.0497,99824.0,99823.0,0.3702811]
[1746717452157,0.001,99824.0,99823.0,0.3702811]
[1746717452855,0.0529,99824.0,99823.0,0.37028099]
[1746717453663,0.2532225,99824.0,99823.0,0.37028099]
[1746717453865,0.0529,99824.0,99823.0,0.37028099]
[1746717454254,0.0529,99824.0,99823.0,0.16995649]
[1746717454464,0.2003446,99813.0,99812.0,0.03284915]
[1746717454761,0.2003446,99813.0,99812.0,0.21600484]
[1746717455157,0.168,99813.0,99812.0,0.21600484]
[1746717455356,0.2203,99813.0,99812.0,0.21600484]
[1746717455558,0.2203,99813.0,99812.0,0.26850484]
[1746717455857,0.4714446,99813.0,99812.0,0.3457368]
[1746717456059,0.2711,99813.0,99812.0,0.3457368]
[1746717456559,0.4714446,99813.0,99812.0,0.45009675]
[1746717457572,0.4714446,99813.0,99812.0,0.39759675]
[1746717458866,0.4714446,99813.0,99812.0,0.40505357]
[1746717459568,0.4714446,99813.0,99812.0,0.10034697]
[1746717460371,0.4714446,99813.0,99812.0,0.00745682]
[1746717460561,0.2003586,99806.0,99805.0,0.0485]
[1746717460962,0.5611586,99806.0,99805.0,0.0559711]
[1746717461160,0.7291586,99806.0,99805.0,0.0559711]
[1746717461360,0.8276586,99806.0,99805.0,0.0559711]
[1746717461564,0.8276586,99806.0,99805.0,0.07824632]
[1746717461769,0.8276586,99806.0,99805.0,0.08024632]
[1746717462268,0.8276586,99806.0,99805.0,0.0094711]
[1746717465072,0.8276586,99806.0,99805.0,0.0084711]
[1746717465373,0.8276586,99806.0,99805.0,0.0074711]
[1746717465676,0.6273,99806.0,99801.0,0.0515]
[1746717465873,0.2665,99806.0,99803.0,0.0500909]
[1746717466075,0.2665,99806.0,99805.0,0.2003606]
[1746717466270,0.0985,99806.0,99805.0,0.2003606]
[1746717466470,0.0985,99806.0,99805.0,0.2521606]
[1746717467766,0.049,99806.0,99805.0,0.25968164]
[1746717468375,0.049,99806.0,99805.0,0.26068164]
[1746717468678,0.0517,99814.0,99813.0,0.2003446]
[1746717469174,0.5517,99814.0,99813.0,0.2003446]
[1746717469372,0.5,99814.0,99813.0,0.2003446]
[1746717469771,0.5,99814.0,99813.0,0.2481446]
[1746717470170,0.5,99814.0,99813.0,0.4161446]
[1746717470771,0.0986,99823.0,99822.0,0.2003265]
[1746717470975,0.09525762,99823.0,99822.0,0.3040465]
[1746717471777,0.09525762,99823.0,99822.0,0.3568465]
[1746717479282,0.26325762,99823.0,99822.0,0.3568465]
[1746717480384,0.09525762,99823.0,99822.0,0.10372]
[1746717480586,0.29558212,99823.0,99822.0,0.10372]
[1746717480886,0.29558212,99823.0,99822.0,0.3040465]
[1746717481086,0.46358212,99823.0,99822.0,0.3040465]
[1746717483882,0.2003265,99822.0,99821.0,0.0478]
[1746717484188,0.2504261,99815.0,99814.0,0.3040626]
[1746717484682,0.2504261,99815.0,99814.0,0.10372]
[1746717485082,0.4184261,99815.0,99814.0,0.10372]
[1746717485286,0.4184261,99815.0,99814.0,0.3040626]
[1746717488886,0.168,99815.0,99814.0,0.3040626]
[1746717489387,0.001,99824.0,99823.0,0.2003245]
[1746717489388,0.2013225,99824.0,99823.0,0.2003245]
[1746717489687,0.2003265,99822.0,99821.0,0.1041]
[1746717489886,0.0510807,99824.0,99823.0,0.2003245]
[1746717489887,0.001,99824.0,99823.0,0.2003245]
[1746717490088,0.2013225,99824.0,99823.0,0.2003245]
[1746717490481,0.2013225,99824.0,99823.0,0.2511245]
[1746717490686,0.2013225,99824.0,99823.0,0.0508]
[1746717490989,0.2003245,99823.0,99822.0,0.0533]
[1746717491182,0.2520245,99823.0,99822.0,0.0533]
[1746717492687,0.2520245,99823.0,99822.0,0.2536265]
[1746717494792,0.001,99824.0,99823.0,0.2003245]
[1746717494985,0.2013225,99824.0,99823.0,0.2532245]
[1746717495789,0.2003245,99823.0,99822.0,0.0533]
[1746717495985,0.2498245,99823.0,99822.0,0.0533]
[1746717496683,0.2003406,99815.0,99810.0,0.1532876]
[1746717496891,0.2003406,99815.0,99811.0,0.0993868]
[1746717497092,0.2003406,99815.0,99814.0,0.3040626]
[1746717497293,0.3683406,99815.0,99814.0,0.3040626]
[1746717498397,0.3683406,99815.0,99814.0,0.10372]
[1746717499099,0.3683406,99815.0,99814.0,0.3040626]
[1746717499901,0.3683406,99815.0,99814.0,0.10372]
[1746717501501,0.3683406,99815.0,99814.0,0.15512]
[1746717501803,0.4213406,99815.0,99814.0,0.15512]
[1746717502994,0.4213406,99815.0,99814.0,0.3554626]
[1746717503297,0.4213406,99815.0,99814.0,0.15512]
[1746717503894,0.4213406,99815.0,99814.0,0.3554626]
[1746717505002,0.4213406,99815.0,99814.0,0.15512]
[1746717505801,0.4213406,99815.0,99814.0,0.3554626]
[1746717506305,0.4213406,99815.0,99814.0,0.15512]
[1746717508610,0.4213406,99815.0,99814.0,0.10372]
[1746717509807,0.9213406,99815.0,99814.0,0.10372]
[1746717510513,0.2003566,99807.0,99806.0,0.2542583]
[1746717510912,0.2003566,99807.0,99806.0,0.0539]
[1746717511309,0.5611566,99807.0,99806.0,0.0539]
[1746717511510,0.6642566,99807.0,99806.0,0.0539]
[1746717511913,0.6642566,99807.0,99806.0,0.0559]
[1746717512217,0.4714566,99807.0,99806.0,0.2562586]
[1746717512717,0.168,99807.0,99806.0,0.3050586]
[1746717513306,0.2003566,99807.0,99806.0,0.3551478]
[1746717514816,0.2003566,99807.0,99806.0,0.3541478]
[1746717518030,0.2003566,99807.0,99806.0,0.3040586]
[1746717520722,0.2504374,99814.0,99813.0,0.2003406]
[1746717521240,0.1029811,99823.0,99815.0,0.050085]
[1746717521532,0.2003262,99823.0,99818.0,0.2003346]
[1746717521733,0.0500813,99823.0,99822.0,0.2003265]
[1746717522032,0.0500813,99823.0,99822.0,0.3026465]
[1746717522033,0.2504109,99823.0,99822.0,0.3026465]
[1746717524433,0.2003296,99823.0,99822.0,0.3026465]
[1746717525335,0.2003296,99823.0,99822.0,0.2003265]
[1746717526521,0.3020296,99823.0,99822.0,0.2003265]
[1746717527235,0.2532296,99823.0,99822.0,0.2003265]
[1746717529630,0.2003285,99821.0,99820.0,0.2504117]
[1746717529932,0.2003285,99821.0,99820.0,0.2991117]
[1746717532036,0.2003285,99821.0,99820.0,0.3001117]
[1746717532835,0.2003285,99821.0,99820.0,0.3011117]
[1746717533036,0.1039,99826.0,99821.0,0.0500817]
[1746717533337,0.2514072,99824.0,99823.0,0.2003245]
[1746717534630,0.2514072,99824.0,99823.0,0.2023245]
[1746717537037,0.2514072,99824.0,99823.0,0.2013245]
[1746717537232,0.2514072,99824.0,99823.0,0.002]
[1746717537539,0.2514072,99824.0,99823.0,0.2013245]
[1746717537734,0.2514072,99824.0,99823.0,0.2023245]
[1746717538141,0.2514072,99824.0,99823.0,0.2013245]
[1746717538640,0.2514072,99824.0,99823.0,0.2023245]
[1746717541032,0.2514072,99824.0,99823.0,0.002]
[1746717541229,0.4194072,99824.0,99823.0,0.002]
[1746717543241,0.9194072,99824.0,99823.0,0.002]
[1746717543439,1.0195832,99824.0,99823.0,0.002]
[1746717544237,0.2003506,99810.0,99809.0,0.0504]
[1746717545138,0.4721506,99810.0,99809.0,0.0504]
[1746717545338,0.4721506,99810.0,99809.0,0.2507526]
[1746717545943,0.4207506,99810.0,99809.0,0.2507526]
[1746717546143,0.2003471,99815.0,99814.0,0.2504238]
[1746717546342,0.2527471,99815.0,99814.0,0.2504238]
[1746717546544,0.2527471,99815.0,99814.0,0.2003386]
[1746717546844,0.7527471,99815.0,99814.0,0.2003386]
[1746717547543,0.7527471,99815.0,99814.0,0.2043386]
[1746717547745,0.8015471,99815.0,99814.0,0.2043386]
[1746717547944,0.7527471,99815.0,99814.0,0.2043386]
[1746717548144,0.7527471,99815.0,99814.0,0.2013386]
[1746717548344,0.7527471,99815.0,99814.0,0.2023386]
[1746717549048,0.5,99815.0,99814.0,0.5631386]
[1746717549241,0.2003293,99821.0,99820.0,0.2003305]
[1746717550747,0.2003305,99820.0,99819.0,0.0511]
[1746717553050,0.2003305,99820.0,99819.0,0.0531]
[1746717553347,0.3683305,99820.0,99819.0,0.0531]
[1746717553745,0.168,99820.0,99819.0,0.2524325]
[1746717554150,0.2003305,99820.0,99819.0,0.2524325]
[1746717554752,0.2003305,99820.0,99819.0,0.2514325]
[1746717555253,0.200326,99823.0,99822.0,0.2003245]
[1746717556155,0.368326,99823.0,99822.0,0.2003245]
[1746717557155,0.200326,99823.0,99822.0,0.2003245]
[1746717557856,0.2003346,99819.0,99818.0,0.2003306]
[1746717558455,0.2003346,99819.0,99814.0,0.0500855]
[1746717558456,0.0495,99823.0,99822.0,0.2003265]
[1746717558657,0.001,99824.0,99823.0,0.2003245]
[1746717558848,0.001,99824.0,99823.0,0.2303245]
[1746717559843,0.001,99824.0,99823.0,0.2003245]
[1746717560251,0.001,99824.0,99823.0,0.2013245]
[1746717560650,0.001,99824.0,99823.0,0.2023245]
[1746717561558,0.001,99824.0,99823.0,0.2557245]
[1746717562956,0.2013225,99824.0,99823.0,0.0554]
[1746717563154,0.3693225,99824.0,99823.0,0.0554]
[1746717563861,0.169,99824.0,99823.0,0.2557245]
[1746717564159,0.001,99824.0,99823.0,0.2557245]
[1746717572362,0.001,99824.0,99823.0,0.3075245]
[1746717572757,0.0534,99824.0,99823.0,0.4090045]
[1746717573154,0.2214,99824.0,99823.0,0.4090045]
[1746717575262,0.0534,99824.0,99823.0,0.4588045]
[1746717576264,0.2214,99824.0,99823.0,0.4588045]
[1746717576462,0.2214,99824.0,99823.0,0.4090045]
[1746717577265,0.0534,99824.0,99823.0,0.4090045]
[1746717578162,0.2214,99824.0,99823.0,0.4090045]
[1746717578771,0.4217225,99824.0,99823.0,0.4090045]
[1746717579065,0.2214,99824.0,99823.0,0.3572045]
[1746717584070,0.2214,99824.0,99823.0,0.4082045]
[1746717584272,0.0534,99824.0,99823.0,0.4082045]
[1746717585162,0.2214,99824.0,99823.0,0.4082045]
[1746717585563,0.169,99824.0,99823.0,0.4082045]
[1746717586169,0.001,99824.0,99823.0,0.4082045]
[1746717594062,0.001,99824.0,99823.0,0.42386012]
[1746717598071,0.001,99824.0,99823.0,0.42386007]
[1746717601578,0.001,99824.0,99823.0,0.42385996]
[1746717603280,0.0500661,99853.0,99838.0,0.2002944]
[1746717603472,0.2002791,99846.0,99838.0,0.57674986]
[1746717603668,0.1055,99845.0,99838.0,0.67864986]
[1746717604068,0.1055,99845.0,99838.0,0.69686566]
[1746717604282,0.0531,99845.0,99838.0,0.69686566]
[1746717605581,0.1055,99845.0,99838.0,0.69686566]
[1746717606174,0.3057805,99845.0,99838.0,0.69686566]
[1746717606374,0.0488,99842.0,99838.0,0.69686566]
[1746717606677,0.0488,99842.0,99838.0,0.69686349]
[1746717607483,0.049,99841.0,99838.0,0.69686349]
[1746717608072,0.0488,99842.0,99838.0,0.69686349]
[1746717608782,0.0528,99841.0,99838.0,0.69686349]
[1746717609172,0.1695032,99839.0,99838.0,0.69686349]
[1746717610182,0.0015032,99839.0,99838.0,0.69686349]
[1746717612488,0.0015032,99839.0,99838.0,0.79754349]
[1746717613091,0.1695032,99839.0,99838.0,0.79754349]
[1746717614192,0.0015032,99839.0,99838.0,0.79754349]
[1746717615093,0.1695032,99839.0,99838.0,0.79754349]
[1746717618498,0.1695032,99839.0,99838.0,0.79722783]
[1746717619779,0.168,99839.0,99838.0,0.79722783]
[1746717620282,0.168,99839.0,99838.0,0.79754293]
[1746717622484,0.168,99839.0,99838.0,0.80754293]
[1746717623086,0.0492,99846.0,99842.0,0.2002864]
[1746717623295,0.0492,99846.0,99842.0,0.21593913]
[1746717624188,0.17,99843.0,99842.0,0.41517913]
[1746717625800,0.08942562,99843.0,99842.0,0.51533513]
[1746717626187,0.001,99849.0,99848.0,0.2002744]
[1746717626494,0.001,99849.0,99848.0,0.57672713]
[1746717627098,0.001,99849.0,99848.0,0.67072713]
[1746717628197,0.001,99849.0,99848.0,0.67072497]
[1746717628696,0.0025,99857.0,99856.0,0.2002583]
[1746717628894,0.0025,99857.0,99856.0,0.57670887]
[1746717629493,0.0025,99857.0,99856.0,0.71880887]
[1746717629894,0.0025,99857.0,99856.0,0.7031583]
[1746717630092,0.0025,99857.0,99856.0,0.71880824]
[1746717630500,0.168,99862.0,99861.0,0.2002483]
[1746717630802,0.168,99862.0,99861.0,0.21589824]
[1746717631397,0.168,99862.0,99861.0,0.26569824]
[1746717631794,0.168,99862.0,99861.0,0.26569818]
[1746717632597,0.168,99862.0,99861.0,0.27311766]
[1746717635809,0.168,99862.0,99861.0,0.37295766]
[1746717641420,0.168,99862.0,99861.0,0.37295764]
[1746717645113,0.168,99862.0,99861.0,0.35730778]
[1746717645310,0.168,99862.0,99861.0,0.37295764]
[1746717646816,0.168,99862.0,99861.0,0.27311764]
[1746717647016,0.168,99862.0,99861.0,0.37223764]
[1746717648814,0.168,99862.0,99861.0,0.12218935]
[1746717649010,0.3682463,99862.0,99861.0,0.12218994]
[1746717649322,0.3682463,99862.0,99861.0,0.32243824]
[1746717650017,0.4628463,99862.0,99861.0,0.32243824]
[1746717650225,0.2626,99862.0,99861.0,0.32243824]
[1746717650717,0.2626,99862.0,99861.0,0.30678778]
[1746717650922,0.2626,99862.0,99861.0,0.32243873]
[1746717651922,0.4628463,99862.0,99861.0,0.32243873]
[1746717652610,0.2626,99862.0,99861.0,0.32243873]
[1746717652813,0.4628463,99862.0,99861.0,0.32243873]
[1746717653022,0.2626,99862.0,99861.0,0.32243873]
[1746717653612,0.0025,99869.0,99861.0,0.32243873]
[1746717653818,0.1,99900.0,99868.0,0.3608]
[1746717654128,0.1,99900.0,99899.0,0.2001721]
[1746717654313,1e-07,99900.0,99899.0,0.71284305]
[1746717654621,1e-07,99900.0,99899.0,0.80062305]
[1746717654920,1e-07,99900.0,99899.0,0.89974305]
[1746717655231,0.0019601,99903.0,99902.0,0.2001661]
[1746717655521,0.0019601,99903.0,99902.0,0.38493705]
[1746717655718,0.0019601,99903.0,99902.0,0.31493705]
[1746717655915,0.0019601,99903.0,99902.0,0.11477095]
[1746717656120,0.1699601,99903.0,99902.0,0.31493705]
[1746717656425,0.1699601,99903.0,99902.0,0.11476374]
[1746717656822,0.1699601,99903.0,99902.0,0.31492984]
[1746717657527,0.1699601,99903.0,99902.0,0.69090378]
[1746717658429,0.1699601,99903.0,99902.0,0.33010378]
[1746717658725,0.1699601,99903.0,99902.0,0.67572984]